bitfinex/quotes_ETHUSD_20220111
["timestamp","ask_amount","ask_price","bid_price","bid_amount"]
[1641897205089,2.88583495,3110.8,3110.6,0.00397897]
[1641897205490,1.0,3110.7,3110.6,0.00397897]
[1641897206294,1.64143612,3110.9,3110.6,0.00397897]
[1641897206492,1.56108612,3110.9,3110.6,0.00397897]
[1641897206890,2.56108612,3111.0,3110.6,0.00397897]
[1641897207092,1.56108612,3111.0,3110.6,0.00397897]
[1641897207337,1.0,3110.9,3110.6,0.00397897]
[1641897207539,1.56108612,3111.0,3110.6,0.00397897]
[1641897208532,1.56108612,3111.0,3110.6,0.80746897]
[1641897208730,1.56108612,3111.0,3110.6,0.84083002]
[1641897208937,1.56108612,3111.1,3110.6,0.80746897]
[1641897209133,1.56108612,3111.1,3110.7,0.6428034]
[1641897209336,1.56108612,3111.1,3110.8,0.03670304]
[1641897209534,1.56108612,3111.1,3110.8,0.03954516]
[1641897209734,1.56108612,3111.1,3110.9,0.0022737]
[1641897209934,1.56108612,3111.2,3110.9,0.0022737]
[1641897210137,1.56108612,3111.2,3110.8,0.00284212]
[1641897210335,1.56108612,3111.2,3110.8,0.0420402]
[1641897210532,1.56108612,3111.2,3110.8,0.00284212]
[1641897210732,1.56108612,3111.2,3110.9,0.0022737]
[1641897210997,1.56108612,3111.2,3110.8,0.00284212]
[1641897211197,1.56108612,3111.2,3110.9,1.2854001]
[1641897211394,1.56108612,3111.2,3111.0,1.60653]
[1641897211593,1.56108612,3111.2,3111.1,0.03028989]
[1641897211796,3.17989626,3111.6,3111.1,5.18142674]
[1641897211797,1.56108612,3111.6,3111.1,5.18142674]
[1641897212195,0.00113684,3111.5,3111.1,5.18142674]
[1641897212701,0.00113684,3111.5,3111.4,1.48946523]
[1641897213096,0.00113684,3111.5,3111.4,1.78946523]
[1641897213496,0.00113684,3111.5,3111.3,0.11282902]
[1641897213698,0.00113684,3111.5,3111.3,0.08033]
[1641897214099,0.00113684,3111.5,3111.1,0.08146685]
[1641897214941,1.00113684,3111.5,3111.1,0.08146685]
[1641897215143,1.56222296,3111.5,3111.1,0.08146685]
[1641897215743,1.56222296,3111.5,3111.1,0.00113685]
[1641897215944,2.9968155,3111.4,3111.1,0.00113685]
[1641897216145,1.0,3111.3,3111.1,0.00113685]
[1641897216344,1.0,3111.3,3110.9,0.0022737]
[1641897216345,3.10040443,3111.2,3110.9,0.0022737]
[1641897216544,5.76093973,3111.4,3110.6,0.00397897]
[1641897216744,5.76093973,3111.4,3110.6,0.64680407]
[1641897216944,4.29097323,3111.2,3110.7,0.03582222]
[1641897217144,4.29097323,3111.2,3110.9,1.25372991]
[1641897217346,4.29097323,3111.3,3110.9,1.25372991]
[1641897217544,1.0,3111.2,3111.0,0.00170527]
[1641897217949,2.72988711,3111.1,3111.0,0.00170527]
[1641897218797,1.56108612,3111.3,3111.0,0.00170527]
[1641897219996,2.72988711,3111.2,3111.0,0.00170527]
[1641897220197,0.00113684,3111.5,3111.0,0.00170527]
[1641897220701,1.00113684,3111.5,3111.0,0.00170527]
[1641897220898,0.00113684,3111.5,3111.0,0.00170527]
[1641897221104,1.00113684,3111.5,3111.0,0.00170527]
[1641897221698,0.00113684,3111.5,3111.0,0.00170527]
[1641897222542,0.00113684,3111.5,3111.2,0.6427622]
[1641897223841,1.00113684,3111.5,3111.2,0.9427622]
[1641897224142,0.00113684,3111.5,3111.2,0.9427622]
[1641897225643,1.00113684,3111.5,3111.2,0.9427622]
[1641897225848,0.00113684,3111.5,3111.2,0.9427622]
[1641897226086,1.00113684,3111.5,3111.2,0.9427622]
[1641897226287,0.00113684,3111.5,3111.2,0.9427622]
[1641897226689,0.00113684,3111.5,3111.2,0.3]
[1641897226888,2.73102395,3111.5,3111.2,0.3]
[1641897227088,2.73102395,3111.5,3111.1,1.5854603]
[1641897227493,0.00113684,3111.5,3111.1,1.5854603]
[1641897227905,1.00113684,3111.5,3111.1,1.5854603]
[1641897228504,2.72988711,3111.4,3111.1,1.5854603]
[1641897229296,2.72988711,3111.4,3111.1,1.6233371]
[1641897229494,2.72988711,3111.4,3111.2,0.6427249]
[1641897229751,0.00113684,3111.5,3111.2,0.6427249]
[1641897229942,0.00113684,3111.5,3111.1,1.5854603]
[1641897230142,0.00113684,3111.5,3111.1,1.62379624]
[1641897230343,2.72988711,3111.3,3111.1,1.5854603]
[1641897230543,2.72988711,3111.3,3111.1,1.61876424]
[1641897230743,2.72988711,3111.3,3111.2,0.03893873]
[1641897230944,2.73102395,3111.5,3111.2,0.03893873]
[1641897231545,0.00113684,3111.5,3111.2,0.03893873]
[1641897233145,0.00113684,3111.5,3111.3,3.58035]
[1641897233593,0.00113684,3111.5,3111.4,0.3]
[1641897233798,0.00113684,3111.5,3111.4,3.66977701]
[1641897234194,0.00113684,3111.5,3111.4,0.38033]
[1641897234397,0.00113684,3111.5,3111.4,3.01281673]
[1641897234596,0.00113684,3111.5,3111.4,0.38033]
[1641897235498,0.00113684,3111.5,3111.4,0.41906328]
[1641897235696,0.00113684,3111.5,3111.4,0.38033]
[1641897237977,0.00113684,3111.5,3111.4,0.3]
[1641897238176,0.00113684,3111.5,3111.3,0.08033]
[1641897238984,0.00113684,3111.5,3111.2,0.60014819]
[1641897239177,0.00113684,3111.5,3111.2,0.59394604]
[1641897239976,0.00113684,3111.5,3111.2,0.90061803]
[1641897241792,0.00113684,3111.5,3111.2,0.3]
[1641897241988,1.12943684,3111.5,3111.2,0.3]
[1641897242186,1.1283,3111.5,3111.2,0.3]
[1641897242386,1.1283,3111.5,3111.0,0.30170527]
[1641897242587,1.20865,3111.5,3111.0,0.30170527]
[1641897242788,1.20865,3111.5,3111.1,0.00113685]
[1641897242988,1.1283,3111.5,3111.1,0.00113685]
[1641897243289,2.72988711,3111.4,3111.1,0.00113685]
[1641897243687,2.72988711,3111.4,3110.9,0.0022737]
[1641897244288,2.72988711,3111.4,3111.0,0.5961861]
[1641897244489,2.72988711,3111.4,3111.0,0.8961861]
[1641897244744,1.1826,3111.7,3111.1,0.04054109]
[1641897244745,2.72988711,3111.5,3111.1,0.04054109]
[1641897245139,2.72988711,3111.3,3111.1,0.04054109]
[1641897246341,2.73159238,3111.6,3111.1,0.04054109]
[1641897246542,1.0,3111.5,3111.1,0.03525946]
[1641897246748,1.00113684,3111.5,3111.1,0.00113685]
[1641897247341,1.00113684,3111.5,3110.9,0.33924502]
[1641897247542,1.00113684,3111.5,3111.0,0.00170527]
[1641897247743,2.72988711,3111.4,3111.0,0.00170527]
[1641897248341,2.72988711,3111.4,3111.0,3.50170527]
[1641897248588,2.72988711,3111.4,3111.0,0.00170527]
[1641897248785,2.72988711,3111.4,3111.1,0.56360115]
[1641897248985,2.72988711,3111.4,3111.1,0.86360115]
[1641897249185,2.72988711,3111.4,3111.2,0.03875718]
[1641897250986,0.00113684,3111.5,3111.2,0.03875718]
[1641897251192,0.00113684,3111.5,3111.2,1.16350348]
[1641897251392,0.00113684,3111.5,3111.3,0.03592947]
[1641897251588,0.00113684,3111.5,3111.1,0.30113685]
[1641897252742,0.00113684,3111.5,3111.2,1.1247707]
[1641897253144,0.00113684,3111.5,3111.2,1.15645013]
[1641897253344,0.00113684,3111.5,3111.2,1.1247707]
[1641897253548,0.00113684,3111.5,3111.3,0.08035]
[1641897253750,0.00113684,3111.5,3111.2,1.16249647]
[1641897254145,0.00113684,3111.5,3111.2,1.15682854]
[1641897254346,0.00113684,3111.5,3111.2,1.1601547]
[1641897254945,0.00113684,3111.5,3111.4,0.80426069]
[1641897255345,0.00113684,3111.5,3111.4,1.13623951]
[1641897255750,0.00113684,3111.5,3111.4,1.10426069]
[1641897256000,0.00113684,3111.5,3111.4,0.3]
[1641897256599,0.00113684,3111.5,3111.2,1.46404154]
[1641897256800,0.00113684,3111.5,3111.2,1.46467556]
[1641897257001,0.00113684,3111.5,3111.2,1.4247707]
[1641897257399,0.00113684,3111.5,3111.2,1.45866565]
[1641897257600,0.00113684,3111.5,3111.2,1.4247707]
[1641897257801,0.00113684,3111.5,3111.2,1.4631003]
[1641897258000,0.00113684,3111.5,3111.2,0.3]
[1641897258401,0.46413684,3111.5,3111.1,0.00113685]
[1641897258802,4.20093733,3111.5,3111.1,0.00113685]
[1641897259201,1.0,3111.4,3111.1,0.00113685]
[1641897259402,3.81043452,3111.4,3111.1,0.00113685]
[1641897259602,1.0,3111.3,3111.1,0.00113685]
[1641897261041,0.80376,3111.3,3111.1,0.00113685]
[1641897261240,1.08035,3111.4,3111.1,0.00113685]
[1641897261439,2.73008452,3111.2,3111.1,0.00113685]
[1641897261642,3.73008452,3111.2,3111.1,0.00113685]
[1641897262042,1.0,3111.2,3111.1,0.00113685]
[1641897262840,3.73008452,3111.2,3111.1,0.00113685]
[1641897267086,5.29694249,3111.2,3111.1,0.00113685]
[1641897269144,3.73008452,3111.2,3111.1,0.00113685]
[1641897269545,5.29694249,3111.2,3111.1,0.00113685]
[1641897270350,3.73008452,3111.2,3111.1,0.00113685]
[1641897270746,3.73008452,3111.2,3110.8,0.5625205]
[1641897270747,3.73008452,3111.2,3110.9,0.3022737]
[1641897270993,1.0,3111.1,3110.9,0.3022737]
[1641897271291,2.73008452,3111.2,3111.0,0.00170527]
[1641897271493,0.00113684,3111.5,3111.1,5.77061795]
[1641897271689,0.00113684,3111.5,3111.2,2.99952907]
[1641897271892,0.00113684,3111.5,3111.3,0.08035]
[1641897272095,0.00113684,3111.5,3111.2,0.08033]
[1641897272289,0.00113684,3111.5,3111.3,1.13276389]
[1641897272589,0.00113684,3111.5,3111.4,0.08033]
[1641897273789,0.00113684,3111.5,3111.4,0.11140349]
[1641897273991,0.00113684,3111.5,3111.4,0.08033]
[1641897274391,0.00113684,3111.5,3111.3,2.25748579]
[1641897274392,0.00113684,3111.5,3111.3,2.33781579]
[1641897274590,0.00113684,3111.5,3111.4,0.03675359]
[1641897275246,0.00113684,3111.5,3111.3,2.33781579]
[1641897276642,2.72997283,3111.9,3111.3,2.63781579]
[1641897276942,0.00284211,3111.8,3111.3,2.55748579]
[1641897277342,0.00227369,3111.7,3111.3,2.55748579]
[1641897277744,0.00170527,3111.6,3111.3,2.55748579]
[1641897277944,0.00170527,3111.6,3111.3,1.4247219]
[1641897278147,0.00113684,3111.5,3111.3,0.3]
[1641897278604,0.00113684,3111.5,3111.2,0.59726353]
[1641897285442,0.00113684,3111.5,3111.2,0.03483703]
[1641897285642,0.00113684,3111.5,3111.1,1.27188556]
[1641897286497,0.00113684,3111.5,3111.1,0.33667285]
[1641897286699,0.00113684,3111.5,3111.2,0.5624296]
[1641897286895,0.00113684,3111.5,3111.2,0.60227708]
[1641897288096,0.00113684,3111.5,3111.1,0.33332516]
[1641897288297,0.00113684,3111.5,3111.0,1.42656577]
[1641897288704,0.00113684,3111.5,3111.1,0.00113685]
[1641897290760,0.00113684,3111.5,3110.9,0.0022737]
[1641897290962,0.00113684,3111.5,3111.0,0.5624621]
[1641897291163,0.00113684,3111.5,3111.1,1.1247749]
[1641897291368,0.00113684,3111.5,3111.2,0.03624097]
[1641897291562,2.73110967,3111.5,3111.2,0.03624097]
[1641897292364,0.00113684,3111.5,3111.2,0.03624097]
[1641897293365,0.00113684,3111.5,3111.2,0.59862777]
[1641897293591,0.00113684,3111.5,3111.2,0.89862777]
[1641897293792,0.00113684,3111.5,3111.2,0.89894137]
[1641897293995,0.00113684,3111.5,3111.2,1.65993463]
[1641897294195,0.00113684,3111.5,3111.2,1.66251526]
[1641897294393,0.00113684,3111.5,3111.2,0.8623868]
[1641897295394,0.00113684,3111.5,3111.3,0.86095058]
[1641897297253,0.00113684,3111.5,3111.2,0.33094174]
[1641897297645,0.00113684,3111.5,3111.2,0.03094174]
[1641897301596,0.00113684,3111.5,3111.1,0.00113685]
[1641897301900,2.706714,3111.9,3111.0,0.11741437]
[1641897302100,2.706714,3111.9,3111.1,1.7336841]
[1641897302299,0.00170527,3111.8,3111.1,1.73595779]
[1641897302497,3.2,3111.5,3111.2,0.08203527]
[1641897302899,3.2,3111.5,3111.3,0.00113684]
[1641897307843,3.2,3111.5,3111.4,0.11792942]
[1641897308042,3.2,3111.5,3111.4,0.38033]
[1641897308491,3.2,3111.5,3111.4,0.41033234]
[1641897309489,3.2,3111.5,3111.4,0.38033]
[1641897310590,3.2,3111.5,3111.4,2.98033]
[1641897310790,3.2,3111.5,3111.4,3.01566361]
[1641897310993,3.2,3111.5,3111.4,25.40384726]
[1641897311196,3.2,3111.5,3111.4,25.06635267]
[1641897311394,0.00113685,3111.7,3111.4,26.33101906]
[1641897311596,1.56685797,3112.6,3112.2,0.5622141]
[1641897311991,0.00454739,3112.5,3112.2,0.5622141]
[1641897312271,0.00454739,3112.5,3112.3,0.3]
[1641897312554,1.56685797,3112.7,3112.3,0.3]
[1641897312555,0.00397896,3112.4,3112.3,0.3]
[1641897312752,0.00397896,3112.4,3112.1,0.3]
[1641897312952,0.00397896,3112.4,3112.0,0.3]
[1641897313152,0.00397896,3112.4,3111.8,0.03606345]
[1641897313153,0.00341054,3112.3,3111.8,0.33606345]
[1641897313556,0.00284212,3112.2,3112.0,1.44685012]
[1641897313853,0.00227369,3112.1,3112.0,2.87119612]
[1641897314054,0.00227369,3112.1,3112.0,5.8141139]
[1641897314254,0.00511581,3112.1,3112.0,3.13631838]
[1641897314456,0.00511581,3112.1,3112.0,6.41663838]
[1641897315255,0.00511581,3112.1,3112.0,7.21972838]
[1641897316690,0.00511581,3112.1,3112.0,4.01972838]
[1641897318290,0.00511581,3112.1,3112.0,3.21663838]
[1641897318891,0.00511581,3112.1,3112.0,3.13631838]
[1641897320150,0.00511581,3112.1,3112.0,2.83631838]
[1641897322449,2.73485356,3112.1,3112.0,2.83631838]
[1641897325692,0.00511581,3112.1,3112.0,2.83631838]
[1641897326294,0.00511581,3112.1,3112.0,6.08631838]
[1641897326991,0.00511581,3112.1,3112.0,2.83631838]
[1641897327547,0.00511581,3112.1,3112.0,5.33631838]
[1641897327746,0.00511581,3112.1,3112.0,2.83631838]
[1641897328549,0.00511581,3112.1,3112.0,1.71197238]
[1641897330457,0.00511581,3112.1,3112.0,0.3]
[1641897332797,0.00511581,3112.1,3111.8,0.3]
[1641897333194,0.80325,3112.6,3111.8,0.3]
[1641897333195,0.00170527,3112.0,3111.8,0.3]
[1641897333597,0.00113685,3111.9,3111.8,0.3]
[1641897333995,0.00113685,3111.9,3111.8,0.4819267]
[1641897334597,0.00113685,3111.9,3111.8,0.81388566]
[1641897335051,0.00113685,3111.9,3111.6,0.3]
[1641897335251,0.00113685,3111.9,3111.5,6.47030975]
[1641897335448,0.00113685,3111.9,3111.5,5.33980975]
[1641897335849,0.00113685,3111.9,3111.5,3.74515684]
[1641897336049,0.04107368,3111.8,3111.5,0.00113684]
[1641897336251,0.00113685,3111.9,3111.5,0.00113684]
[1641897336450,0.00113685,3111.9,3111.1,0.00341054]
[1641897336649,0.00113685,3111.9,3111.0,0.00397896]
[1641897337252,0.00113685,3111.9,3111.2,1.31778715]
[1641897337449,0.00113685,3111.9,3111.2,1.65453231]
[1641897337651,0.00113685,3111.9,3111.3,0.00227369]
[1641897338893,0.00113685,3111.9,3111.4,0.08033]
[1641897339292,0.00113685,3111.9,3111.5,0.00113685]
[1641897339893,0.00113685,3111.9,3111.4,0.48367627]
[1641897340092,0.00113685,3111.9,3111.5,0.03240023]
[1641897341895,3.20113685,3111.9,3111.5,0.03240023]
[1641897343549,2.72994099,3111.8,3111.5,0.03240023]
[1641897346102,2.72994099,3111.8,3111.6,0.80318]
[1641897346297,2.72994099,3111.8,3111.7,9.15491068]
[1641897346496,2.72994099,3111.8,3111.7,6.23252632]
[1641897346696,2.71324708,3111.8,3111.7,0.33252632]
[1641897347801,2.71324708,3111.8,3111.6,19.88691755]
[1641897348399,2.71324708,3111.8,3111.7,3.00725039]
[1641897348604,2.71324708,3111.8,3111.7,3.03749706]
[1641897349200,2.71324708,3111.8,3111.7,6.18499706]
[1641897349402,2.71324708,3111.8,3111.7,3.78499706]
[1641897350646,2.71324708,3111.8,3111.7,3.75475039]
[1641897352543,2.71324708,3111.8,3111.7,3.00725039]
[1641897353244,4.00429685,3111.9,3111.7,3.00725039]
[1641897353495,4.00429685,3111.9,3111.7,0.29474847]
[1641897354295,4.00429685,3111.9,3111.7,19.04474847]
[1641897355698,4.00429685,3111.9,3111.7,0.29474847]
[1641897356304,4.00429685,3111.9,3111.8,0.29474847]
[1641897356508,4.30429685,3111.9,3111.8,0.29474847]
[1641897359059,4.00429685,3111.9,3111.8,0.29474847]
[1641897359252,4.00429685,3111.9,3111.8,1.00494847]
[1641897361101,4.30429685,3111.9,3111.8,0.29474847]
[1641897361302,4.30429685,3111.9,3111.7,0.37506847]
[1641897362606,4.30429685,3111.9,3111.7,0.29474847]
[1641897364009,4.30316,3111.9,3111.7,0.29474847]
[1641897364213,4.30316,3111.9,3111.7,19.04474847]
[1641897364849,4.30316,3111.9,3111.8,0.29474847]
[1641897366851,7.03290804,3111.9,3111.8,0.29474847]
[1641897368254,6.91275119,3111.9,3111.8,0.29474847]
[1641897371902,9.95101525,3111.9,3111.8,0.29474847]
[1641897372114,9.95101525,3111.9,3111.8,4.847e-05]
[1641897372360,10.41401525,3111.9,3110.6,0.08032]
[1641897372554,0.80351,3111.3,3110.5,0.2729941]
[1641897372751,2.94462509,3111.2,3110.7,0.00568423]
[1641897372953,0.3,3111.2,3110.7,0.00568423]
[1641897373353,3.7036,3111.7,3110.7,0.80909423]
[1641897373354,0.3,3111.4,3110.7,0.80909423]
[1641897373550,4.0036,3111.7,3110.7,0.88944423]
[1641897373752,4.0036,3111.7,3110.8,0.00511581]
[1641897373951,0.80351,3111.1,3110.8,0.00511581]
[1641897374154,0.3,3111.0,3110.8,0.00511581]
[1641897375551,0.3,3111.0,3110.8,0.80843581]
[1641897375999,0.3,3111.0,3110.9,0.00454739]
[1641897376299,0.3,3111.0,3110.9,18.75454739]
[1641897376498,0.3,3111.0,3110.9,0.67254281]
[1641897376998,0.3,3111.0,3110.9,0.00454739]
[1641897377997,0.3,3111.0,3110.6,0.08035]
[1641897378196,0.80356,3110.9,3110.7,0.00113684]
[1641897378698,0.3,3110.8,3110.4,0.00284211]
[1641897378899,0.3,3110.8,3110.4,1.27923386]
[1641897379099,1.60703,3110.6,3110.4,1.27923386]
[1641897379306,0.3,3110.8,3110.5,0.00227369]
[1641897379772,0.3,3110.8,3110.6,0.80341]
[1641897380065,0.80356,3110.9,3110.6,0.80341]
[1641897380262,2.04921,3111.2,3110.7,0.08035]
[1641897380660,0.00113685,3111.1,3110.6,0.08035]
[1641897381463,0.80336,3111.0,3110.8,1.60661]
[1641897382764,0.80336,3111.0,3110.6,0.08035]
[1641897382963,0.80336,3111.0,3110.6,1.68705]
[1641897383264,3.2,3110.9,3110.6,1.68705]
[1641897384601,3.5,3110.9,3110.6,1.68705]
[1641897385205,3.5,3110.9,3110.6,20.43705]
[1641897385600,3.5,3110.9,3110.6,20.3567]
[1641897387360,3.5,3110.9,3110.6,1.6067]
[1641897389259,3.2,3110.9,3110.6,1.6067]
[1641897389456,3.5,3110.9,3110.6,1.6067]
[1641897390365,3.5,3110.9,3110.7,18.75]
[1641897391502,3.5,3110.9,3110.8,6.86805587]
[1641897391503,3.2,3110.9,3110.8,6.86805587]
[1641897391701,3.2,3110.9,3110.8,26.42131587]
[1641897391902,3.5,3110.9,3110.8,26.42131587]
[1641897392104,3.5,3110.9,3110.8,0.87131587]
[1641897392601,3.5,3110.9,3110.8,4.27131587]
[1641897393303,3.5,3110.9,3110.8,23.02131587]
[1641897393702,3.5,3110.9,3110.8,23.48431587]
[1641897393901,3.2,3110.9,3110.8,23.48431587]
[1641897394304,3.2,3110.9,3110.8,24.78431587]
[1641897394605,0.00113685,3111.1,3111.0,25.45636]
[1641897395055,0.00113685,3111.1,3111.0,26.75636]
[1641897395258,0.80319,3111.6,3111.2,18.75]
[1641897395560,0.00227369,3111.5,3111.3,19.75]
[1641897395755,0.00227369,3111.5,3111.3,18.75]
[1641897395956,0.00170527,3111.4,3111.3,19.47520135]
[1641897396155,0.00170527,3111.4,3111.3,20.47520135]
[1641897397059,0.30170527,3111.4,3111.3,21.27833135]
[1641897397958,0.00170527,3111.4,3111.3,21.27833135]
[1641897399704,0.30170527,3111.4,3111.3,21.27833135]
[1641897400104,0.00170527,3111.4,3111.3,21.27833135]
[1641897400502,0.00170527,3111.4,3111.3,21.35868135]
[1641897401309,0.00170527,3111.4,3111.3,2.60868135]
[1641897401506,0.00170527,3111.4,3111.3,2.52833135]
[1641897402107,0.00170527,3111.4,3111.3,1.52833135]
[1641897402956,0.30170527,3111.4,3111.3,1.52833135]
[1641897403357,0.00170527,3111.4,3111.3,20.27833135]
[1641897403757,3.20170527,3111.4,3111.3,21.27833135]
[1641897404559,3.20170527,3111.4,3111.3,2.52833135]
[1641897404758,3.50170527,3111.4,3111.3,0.80313]
[1641897404959,3.50170527,3111.4,3111.3,1.80313]
[1641897405159,3.50170527,3111.4,3111.3,0.80313]
[1641897405858,3.20170527,3111.4,3111.3,0.80313]
[1641897406503,3.20170527,3111.4,3111.3,19.55313]
[1641897406906,3.50170527,3111.4,3111.3,1.80313]
[1641897407106,3.50170527,3111.4,3111.3,20.55313]
[1641897407705,3.20170527,3111.4,3111.3,20.55313]
[1641897407906,3.20170527,3111.4,3111.3,20.85313]
[1641897410356,3.20170527,3111.4,3111.3,20.93348]
[1641897411262,3.20170527,3111.4,3111.3,20.930486]
[1641897412161,3.20170527,3111.4,3111.3,20.63348]
[1641897414001,3.20170527,3111.4,3111.3,27.63348]
[1641897414203,3.20170527,3111.4,3111.3,20.63348]
[1641897415005,3.20170527,3111.4,3111.3,20.93348]
[1641897415204,3.20170527,3111.4,3111.3,20.85313]
[1641897415708,0.80305,3112.0,3111.5,1.60609]
[1641897415906,8.7353,3112.3,3111.9,0.80298]
[1641897416106,1.60599,3112.6,3111.9,1.26598]
[1641897416416,0.00625266,3112.5,3112.0,18.75]
[1641897416606,0.00625266,3112.5,3112.2,1.32565769]
[1641897416905,0.00568423,3112.4,3112.2,2.05991447]
[1641897417369,0.00511581,3112.3,3112.2,2.86286447]
[1641897418566,0.00511581,3112.3,3112.2,0.73425678]
[1641897419765,0.00511581,3112.3,3111.9,0.463]
[1641897419966,0.80311,3112.2,3111.9,0.763]
[1641897420166,0.80765739,3112.2,3111.9,0.463]
[1641897420368,0.80765739,3112.2,3111.6,1.60617]
[1641897420369,0.00397896,3112.1,3111.6,1.60617]
[1641897420568,0.00397896,3112.1,3111.3,1.68664]
[1641897420569,0.00397896,3112.1,3111.3,5.18664]
[1641897420772,3.26724788,3112.2,3111.4,0.90819718]
[1641897420773,0.00341054,3112.0,3111.4,0.90819718]
[1641897421210,0.80322,3111.8,3111.4,0.90819718]
[1641897421413,0.80322,3111.8,3111.5,1.17956994]
[1641897421717,0.00170527,3111.7,3111.5,1.17956994]
[1641897422011,0.00113685,3111.6,3111.5,1.98275994]
[1641897422411,0.00170527,3111.6,3111.5,1.98275994]
[1641897423012,0.00170527,3111.6,3111.4,0.90819718]
[1641897423216,0.00170527,3111.6,3111.4,1.90819718]
[1641897423613,0.00170527,3111.6,3111.4,0.90819718]
[1641897424414,3.20170527,3111.6,3111.4,0.90819718]
[1641897425254,3.20170527,3111.6,3111.3,3.00966485]
[1641897425454,0.80496527,3111.6,3111.3,3.00966485]
[1641897426455,0.80496527,3111.6,3111.4,0.70256771]
[1641897427256,0.3,3111.4,3111.3,1.60632]
[1641897427457,0.02224797,3111.3,3111.1,0.08033]
[1641897427659,0.80339,3111.3,3111.1,0.08033]
[1641897427860,0.80339,3111.3,3111.2,0.00113685]
[1641897428057,0.80339,3111.3,3110.2,9.3703941]
[1641897428501,0.80339,3111.3,3110.3,0.00511581]
[1641897428502,2.99721707,3111.2,3110.3,0.00511581]
[1641897428703,0.8035,3110.9,3110.3,0.00511581]
[1641897429305,0.8035,3110.9,3110.4,3.5]
[1641897429509,0.8035,3110.9,3110.3,0.00511581]
[1641897429704,0.8035,3110.9,3110.5,0.00397896]
[1641897434057,2.90726351,3110.8,3110.5,0.00397896]
[1641897434258,2.90726351,3110.8,3109.8,19.58873997]
[1641897434259,2.90726351,3110.8,3109.7,1.60714]
[1641897434558,1.60728,3110.4,3110.3,0.00113685]
[1641897435159,1.60728,3110.4,3110.1,0.0022737]
[1641897436007,1.21903685,3110.7,3110.1,0.0022737]
[1641897436008,1.21903685,3110.7,3110.1,18.7522737]
[1641897436207,0.80358,3110.5,3110.1,18.7522737]
[1641897436407,0.80358,3110.5,3110.2,0.80512527]
[1641897436807,0.80358,3110.5,3110.3,18.75]
[1641897437810,0.00113685,3110.7,3110.4,18.75]
[1641897438113,0.00113685,3110.7,3110.5,0.80323]
[1641897438311,0.00113685,3110.7,3110.6,26.313]
[1641897438511,3.2,3110.9,3110.6,20.213]
[1641897438710,3.2,3110.9,3110.6,1.463]
[1641897438914,3.2,3110.9,3110.6,0.463]
[1641897439112,3.2,3110.9,3110.6,1.463]
[1641897439513,3.5,3110.9,3110.6,1.463]
[1641897440161,3.5,3110.9,3110.6,0.463]
[1641897442565,3.5,3110.9,3110.6,19.213]
[1641897444511,3.5,3110.9,3110.6,0.463]
[1641897446811,3.5,3110.9,3110.6,19.213]
[1641897448555,3.5,3110.9,3110.6,0.463]
[1641897450059,3.5,3110.9,3110.8,0.0090144]
[1641897450361,3.50113684,3110.9,3110.8,0.0090144]
[1641897451003,6.30113684,3110.9,3110.8,0.0090144]
[1641897453007,3.50113684,3110.9,3110.8,0.0090144]
[1641897454408,4.3558,3111.5,3110.8,7.1090144]
[1641897454608,1.60646,3111.4,3111.0,0.01748705]
[1641897454876,0.00284212,3111.4,3111.2,19.55317]
[1641897455081,0.00284212,3111.4,3111.3,26.013]
[1641897455376,0.00284212,3111.4,3111.3,27.20778739]
[1641897455585,0.00284212,3111.4,3111.3,22.09192208]
[1641897455777,0.00284212,3111.4,3111.3,21.09192208]
[1641897456978,0.00284212,3111.4,3111.3,2.34192208]
[1641897457277,0.00284212,3111.4,3111.3,21.09192208]
[1641897458735,0.00284212,3111.4,3111.3,2.34192208]
[1641897459534,0.00284212,3111.4,3111.3,1.65778739]
[1641897460036,0.00284212,3111.4,3111.3,1.68842205]
[1641897460838,0.66602212,3111.6,3111.3,1.68842205]
[1641897461941,0.66602212,3111.6,3111.3,0.49363466]
[1641897463265,0.66602212,3111.6,3111.3,1.76288783]
[1641897463672,0.66602212,3111.6,3111.3,0.49363466]
[1641897464665,3.86602212,3111.6,3111.3,0.49363466]
[1641897465064,3.86602212,3111.6,3111.5,2.45823718]
[1641897465265,3.86602212,3111.6,3111.5,0.00823718]
[1641897465464,3.20113685,3111.6,3111.5,0.00823718]
[1641897468308,3.20113685,3111.6,3111.5,20.36447718]
[1641897470153,3.20113685,3111.6,3111.5,20.37936235]
[1641897471159,3.20113685,3111.6,3111.5,20.84236235]
[1641897472156,0.80321,3111.8,3111.6,1.55]
[1641897472462,4.09548575,3112.5,3111.7,3.48193936]
[1641897472655,4.09548575,3112.5,3112.1,0.80288]
[1641897472855,1.1338,3112.8,3112.1,1.26588]
[1641897473255,0.00511581,3112.5,3112.2,1.14225612]
[1641897473511,0.00511581,3112.5,3112.3,0.81074343]
[1641897473718,0.00454738,3112.4,3112.3,3.16074343]
[1641897474311,2.73457522,3112.4,3112.3,0.81074343]
[1641897474811,0.00454738,3112.4,3112.3,0.81074343]
[1641897475012,0.00454738,3112.4,3112.3,1.61369343]
[1641897475613,2.73457522,3112.4,3112.3,1.61369343]
[1641897476222,0.00454738,3112.4,3112.3,1.61369343]
[1641897477015,2.73457522,3112.4,3112.3,1.61369343]
[1641897477660,2.73457522,3112.4,3112.3,0.80295]
[1641897478463,2.73457522,3112.4,3112.2,0.00806428]
[1641897478968,0.00397896,3112.3,3111.8,1.6061]
[1641897479265,2.73002784,3112.4,3111.6,1.26333223]
[1641897479266,0.80316,3112.1,3111.6,1.26333223]
[1641897479465,0.06612388,3112.0,3111.6,1.26333223]
[1641897479665,0.06839757,3112.0,3111.6,1.26333223]
[1641897479861,0.00170527,3111.9,3111.6,1.26333223]
[1641897480263,0.00113684,3111.8,3111.6,1.26333223]
[1641897480662,0.00284211,3112.1,3111.6,1.26333223]
[1641897480863,4.33636784,3111.9,3111.6,1.26333223]
[1641897481111,4.33636784,3111.9,3111.4,0.80322]
[1641897481307,0.00113684,3111.8,3111.4,0.80322]
[1641897481812,0.00113684,3111.8,3111.4,19.55322]
[1641897482007,0.80417684,3111.8,3111.5,2.94628978]
[1641897482209,0.80417684,3111.8,3111.6,18.75]
[1641897482408,0.80417684,3111.8,3111.7,3.55]
[1641897483607,0.80417684,3111.8,3111.7,25.22593133]
[1641897483810,0.00113684,3111.8,3111.7,26.10533133]
[1641897485054,0.00946108,3111.8,3111.7,26.12400025]
[1641897486055,0.00946108,3111.8,3111.7,22.31866892]
[1641897486455,0.00946108,3111.8,3111.7,3.56866892]
[1641897488505,0.00946108,3111.8,3111.7,6.51886222]
[1641897490506,0.00946108,3111.8,3111.7,3.56866892]
[1641897492119,0.00946108,3111.8,3111.5,0.80302]